[Event "34e Open International d'Ã©checs d'Avoin"]
[Site "Avoine, France"]
[Date "2019.07.22"]
[Round "3.8"]
[White "Demuth, Adrien"]
[Black "Merenciano, Alexandre"]
[Result "1-0"]
[WhiteElo "2502"]
[BlackElo "2198"]
[PlyCount "79"]
[EventDate "2019.??.??"]
[TimeControl "1"]

1. Nf3 {[%emt 0:00:00]} Nf6 {[%emt 0:16:01]} 2. c4 {[%emt 0:01:07]} e6 {
[%emt 0:00:32]} 3. Nc3 {[%emt 0:02:33]} d5 {[%emt 0:02:53]} 4. e3 {
[%emt 0:00:06]} Be7 {[%emt 0:02:20]} 5. b3 {[%emt 0:00:10]} O-O {[%emt 0:01:58]
} 6. Bb2 {[%emt 0:00:04]} b6 {[%emt 0:01:38]} 7. g3 {[%emt 0:00:54]} Bb7 {
[%emt 0:08:04]} 8. Bg2 {[%emt 0:00:17]} c5 {[%emt 0:03:27]} 9. O-O {
[%emt 0:01:32]} Nc6 {[%emt 0:00:00]} 10. cxd5 {[%emt 0:00:50]} Nxd5 {
[%emt 0:01:18]} 11. Nxd5 {[%emt 0:00:00]} exd5 {[%emt 0:06:12]} 12. d4 {
[%emt 0:00:28]} Bf6 {[%emt 0:08:03]} 13. Qd2 {[%emt 0:02:01]} Ba6 {
[%emt 0:11:03]} 14. Rfd1 {[%emt 0:13:07]} c4 {[%emt 0:04:00]} 15. Ne5 {
[%emt 0:07:29]} Rc8 {[%emt 0:08:27]} 16. bxc4 {[%emt 0:03:31]} Bxc4 {
[%emt 0:00:44]} 17. Nxc4 {[%emt 0:17:34]} dxc4 {[%emt 0:00:05]} 18. Rac1 {
[%emt 0:00:47]} b5 {[%emt 0:02:12]} 19. e4 {[%emt 0:00:37]} Bg5 {[%emt 0:03:00]
} 20. f4 {[%emt 0:04:17]} Be7 {[%emt 0:00:04]} 21. Bh3 {[%emt 0:04:52]} Rb8 {
[%emt 0:02:35]} 22. Bf1 {[%emt 0:20:10]} Qa5 {[%emt 0:05:30]} 23. Qxa5 {
[%emt 0:07:48]} Nxa5 {[%emt 0:00:05]} 24. d5 {[%emt 0:00:03]} Bc5+ {
[%emt 0:01:57]} 25. Kg2 {[%emt 0:00:55]} Rfc8 {[%emt 0:01:33]} 26. d6 {
[%emt 0:02:46]} Be3 {[%emt 0:02:35]} 27. Rc2 {[%emt 0:02:41]} Nc6 {
[%emt 0:01:44]} 28. a3 {[%emt 0:00:00]} a5 {[%emt 0:01:47]} 29. Kf3 {
[%emt 0:01:02]} Bc5 {[%emt 0:00:40]} 30. Rd5 {[%emt 0:02:37]} Nd8 {
[%emt 0:00:12]} 31. e5 {[%emt 0:02:05]} a4 {[%emt 0:00:00]} 32. Bh3 {
[%emt 0:00:32]} Ne6 {[%emt 0:00:47]} 33. d7 {[%emt 0:02:09]} Rd8 {
[%emt 0:00:28]} 34. Bxe6 {[%emt 0:00:07]} Bxa3 {[%emt 0:00:06]} 35. Bxf7+ {
[%emt 0:02:25]} Kxf7 {[%emt 0:00:05]} 36. Bxa3 {[%emt 0:00:03]} b4 {
[%emt 0:00:00]} 37. Rxc4 {[%emt 0:00:39]} bxa3 {[%emt 0:00:09]} 38. Rxa4 {
[%emt 0:00:00]} Rb3+ {[%emt 0:00:17]} 39. Kg4 {[%emt 0:00:57]} Ke7 {
[%emt 0:00:36]} 40. Ra7 {[%emt 0:02:04]} 1-0

[Event "34e Open International d'échecs d'Avoin"]
[Site "Avoine, France"]
[Date "2019.07.22"]
[Round "3.9"]
[White "Bouvet, Florian"]
[Black "Bailet, Pierre"]
[Result "1/2-1/2"]
[WhiteElo "2200"]
[BlackElo "2494"]
[PlyCount "126"]
[EventDate "2019.??.??"]
[TimeControl "1"]

1. e4 {[%emt 0:02:22]} e5 {[%emt 0:04:12]} 2. Nf3 {[%emt 0:01:29]} Nc6 {
[%emt 0:02:18]} 3. Bb5 {[%emt 0:00:14]} a6 {[%emt 0:00:39]} 4. Ba4 {
[%emt 0:00:31]} Nf6 {[%emt 0:01:03]} 5. O-O {[%emt 0:01:02]} Be7 {
[%emt 0:00:52]} 6. Re1 {[%emt 0:00:08]} b5 {[%emt 0:01:19]} 7. Bb3 {
[%emt 0:00:10]} d6 {[%emt 0:00:14]} 8. c3 {[%emt 0:00:07]} O-O {[%emt 0:00:11]}
9. h3 {[%emt 0:00:08]} Nb8 {[%emt 0:01:50]} 10. d4 {[%emt 0:00:35]} Nbd7 {
[%emt 0:00:10]} 11. Nbd2 {[%emt 0:00:00]} Bb7 {[%emt 0:00:32]} 12. Bc2 {
[%emt 0:00:16]} Re8 {[%emt 0:00:29]} 13. Nf1 {[%emt 0:00:18]} Bf8 {
[%emt 0:00:23]} 14. Ng3 {[%emt 0:00:06]} g6 {[%emt 0:00:00]} 15. a4 {
[%emt 0:03:54]} c5 {[%emt 0:03:34]} 16. b3 {[%emt 0:14:18]} d5 {[%emt 0:15:04]}
17. dxe5 {[%emt 0:25:32]} dxe4 {[%emt 0:10:44]} 18. Nxe4 {[%emt 0:06:21]} Nxe4
{[%emt 0:03:05]} 19. Bxe4 {[%emt 0:00:07]} Bxe4 {[%emt 0:00:00]} 20. Rxe4 {
[%emt 0:00:12]} Nxe5 {[%emt 0:01:09]} 21. Bf4 {[%emt 0:04:00]} Qxd1+ {
[%emt 0:03:14]} 22. Rxd1 {[%emt 0:00:08]} Red8 {[%emt 0:09:56]} 23. Rxd8 {
[%emt 0:10:46]} Nxf3+ {[%emt 0:00:23]} 24. gxf3 {[%emt 0:00:04]} Rxd8 {
[%emt 0:00:08]} 25. c4 {[%emt 0:13:20]} bxa4 {[%emt 0:17:31]} 26. bxa4 {
[%emt 0:00:06]} h6 {[%emt 0:07:59]} 27. Kg2 {[%emt 0:01:50]} g5 {[%emt 0:03:42]
} 28. Bc7 {[%emt 0:05:27]} Rc8 {[%emt 0:09:19]} 29. Bb6 {[%emt 0:03:00]} Bd6 {
[%emt 0:00:49]} 30. h4 {[%emt 0:04:07]} gxh4 {[%emt 0:01:18]} 31. Rxh4 {
[%emt 0:00:00]} Rc6 {[%emt 0:01:31]} 32. a5 {[%emt 0:01:13]} Be5 {
[%emt 0:00:17]} 33. Re4 {[%emt 0:05:04]} Bd4 {[%emt 0:06:32]} 34. Re8+ {
[%emt 0:01:46]} Kg7 {[%emt 0:00:00]} 35. Ra8 {[%emt 0:02:01]} Rg6+ {
[%emt 0:02:25]} 36. Kh1 {[%emt 0:01:12]} Rf6 {[%emt 0:01:49]} 37. Kg2 {
[%emt 0:01:23]} Rg6+ {[%emt 0:01:09]} 38. Kh1 {[%emt 0:00:04]} Rf6 {
[%emt 0:00:14]} 39. Rxa6 {[%emt 0:02:23]} Rxf3 {[%emt 0:00:00]} 40. Ra8 {
[%emt 0:00:41]} Rb3 {[%emt 0:00:02]} 41. Rb8 {[%emt 0:04:29]} Ra3 {
[%emt 0:00:52]} 42. Ra8 {[%emt 0:02:16]} Rb3 {[%emt 0:01:28]} 43. Bc7 {
[%emt 0:11:10]} Bxf2 {[%emt 0:22:44]} 44. Kg2 {[%emt 0:02:49]} Rb7 {
[%emt 0:04:00]} 45. Be5+ {[%emt 0:04:15]} f6 {[%emt 0:00:25]} 46. a6 {
[%emt 0:00:55]} Rb6 {[%emt 0:08:56]} 47. Bc7 {[%emt 0:04:01]} Rb2 {
[%emt 0:00:48]} 48. a7 {[%emt 0:00:00]} Bd4+ {[%emt 0:01:35]} 49. Kh3 {
[%emt 0:02:11]} Ra2 {[%emt 0:00:24]} 50. Bb6 {[%emt 0:01:04]} h5 {
[%emt 0:04:18]} 51. Kg3 {[%emt 0:03:53]} Ra3+ {[%emt 0:02:20]} 52. Kg2 {
[%emt 0:04:55]} Ra2+ {[%emt 0:02:03]} 53. Kf3 {[%emt 0:01:00]} Ra3+ {
[%emt 0:00:45]} 54. Kg2 {[%emt 0:04:49]} Ra2+ {[%emt 0:01:17]} 55. Kg3 {
[%emt 0:00:53]} Kh6 {[%emt 0:00:02]} 56. Kh4 Kg6 {[%emt 0:00:15]} 57. Rh8 {
[%emt 0:00:06]} Kf7 {[%emt 0:00:12]} 58. Ra8 {[%emt 0:00:07]} Kg7 59. Kh3 {
[%emt 0:00:38]} Ra3+ {[%emt 0:00:19]} 60. Kg2 {[%emt 0:00:01]} Ra2+ {
[%emt 0:00:00]} 61. Kf3 {[%emt 0:00:03]} Ra3+ {[%emt 0:00:02]} 62. Kg2 {
[%emt 0:00:37]} Ra2+ 63. Kh3 Be5 {Kg2 Bd4+ [%emt 00:00:02] Kf3 [%emt 00:00:04]
Ra3+ Ke2 [%emt 00:00:04] h4 Kd3 [%emt 00:00:31] [%emt 0:00:06] [%emt 0:00:03]}
1/2-1/2

[Event "34e Open International d'Ã©checs d'Avoin"]
[Site "Avoine, France"]
[Date "2019.07.22"]
[Round "3.10"]
[White "Abergel, Thal"]
[Black "Pottier, Simeon"]
[Result "1-0"]
[WhiteElo "2450"]
[BlackElo "2192"]
[PlyCount "59"]
[EventDate "2019.??.??"]
[TimeControl "1"]

1. Nf3 {[%emt 0:00:03]} Nf6 {[%emt 0:16:01]} 2. c4 {[%emt 0:02:43]} c5 {
[%emt 0:00:26]} 3. g3 {[%emt 0:00:26]} g6 {[%emt 0:00:05]} 4. b3 {
[%emt 0:00:07]} Bg7 {[%emt 0:00:34]} 5. Bb2 {[%emt 0:00:05]} O-O {
[%emt 0:01:03]} 6. Bg2 {[%emt 0:00:00]} Nc6 {[%emt 0:04:27]} 7. O-O {
[%emt 0:00:14]} d6 {[%emt 0:13:18]} 8. d4 {[%emt 0:00:16]} cxd4 {[%emt 0:00:42]
} 9. Nxd4 {[%emt 0:00:06]} Bd7 {[%emt 0:00:00]} 10. Nc2 {[%emt 0:00:22]} Qc8 {
[%emt 0:02:37]} 11. Re1 {[%emt 0:00:56]} Bh3 {[%emt 0:02:03]} 12. Bh1 {
[%emt 0:00:20]} a6 {[%emt 0:04:07]} 13. Nc3 {[%emt 0:03:08]} Rb8 {
[%emt 0:02:08]} 14. Ne3 {[%emt 0:09:38]} b5 {[%emt 0:03:00]} 15. cxb5 {
[%emt 0:01:14]} axb5 {[%emt 0:01:45]} 16. Rc1 {[%emt 0:00:14]} Bd7 {
[%emt 0:07:51]} 17. Qd2 {[%emt 0:05:41]} Qa6 {[%emt 0:06:56]} 18. Ncd5 {
[%emt 0:05:47]} Nxd5 {[%emt 0:00:45]} 19. Bxg7 {[%emt 0:00:29]} Kxg7 {
[%emt 0:00:00]} 20. Nxd5 {[%emt 0:00:07]} Qa7 {[%emt 0:05:08]} 21. h4 {
[%emt 0:03:47]} Rfc8 {[%emt 0:07:25]} 22. Red1 {[%emt 0:05:39]} Be8 {
[%emt 0:04:13]} 23. h5 {[%emt 0:06:14]} f6 {[%emt 0:03:41]} 24. h6+ {
[%emt 0:01:43]} Kh8 {[%emt 0:03:00]} 25. Nxf6 {[%emt 0:05:07]} Ne5 {
[%emt 0:10:29]} 26. Qf4 {[%emt 0:04:19]} Bf7 {[%emt 0:01:05]} 27. Rxc8+ {
[%emt 0:03:34]} Rxc8 {[%emt 0:00:05]} 28. Ng4 {[%emt 0:00:41]} g5 {
[%emt 0:02:50]} 29. Qxg5 {[%emt 0:00:42]} Rg8 {[%emt 0:00:00]} 30. Nxe5 {
[%emt 0:00:09]} 1-0